[Event "Titled Tuesday Blitz July 4 Late 2023"]
[White "Sadovsky, Artem"]
[Black "Modric, Nesa"]
[WhiteFideId "4155840"]
[BlackFideId "922579"]
[WhiteElo "2550"]
[BlackElo "2263"]
[Result "1-0"]
[Round "1"]
[TimeControl "180+2"]
[Date "2023.07.04"]
[WhiteClock "0:01:24"]
[BlackClock "0:00:00"]
[Board "151"]

1. Nf3 {[%clk 0:02:44]}  d5 {[%clk 0:02:59]} 2. e3 {[%clk 0:02:38]}  Nf6 {[%clk 0:02:58]} 3. c4 {[%clk 0:02:37]}  e6 {[%clk 0:02:57]} 4. Be2 {[%clk 0:02:34]}  Be7 {[%clk 0:02:57]} 5. O-O {[%clk 0:02:35]}  O-O {[%clk 0:02:57]} 6. b3 {[%clk 0:02:35]}  c5 {[%clk 0:02:56]} 7. Bb2 {[%clk 0:02:35]}  Nc6 {[%clk 0:02:55]} 8. cxd5 {[%clk 0:02:36]}  exd5 {[%clk 0:02:55]} 9. d4 {[%clk 0:02:36]}  cxd4 {[%clk 0:02:43]} 10. Nxd4 {[%clk 0:02:37]}  Bc5 {[%clk 0:02:27]} 11. Na3 {[%clk 0:02:22]}  Ne4 {[%clk 0:02:07]} 12. Nac2 {[%clk 0:02:20]}  Re8 {[%clk 0:01:51]} 13. Rc1 {[%clk 0:02:18]}  Bb6 {[%clk 0:01:18]} 14. Nxc6 {[%clk 0:02:06]}  bxc6 {[%clk 0:01:11]} 15. Nb4 {[%clk 0:02:07]}  Qg5 {[%clk 0:00:32]} 16. Rxc6 {[%clk 0:01:52]}  Nxf2 {[%clk 0:00:22]} 17. Rxf2 {[%clk 0:01:52]}  Bxe3 {[%clk 0:00:21]} 18. Nxd5 {[%clk 0:01:37]}  Bxf2+ {[%clk 0:00:11]} 19. Kxf2 {[%clk 0:01:38]}  Bb7 {[%clk 0:00:07]} 20. Rd6 {[%clk 0:01:29]}  Bxd5 {[%clk 0:00:04]} 21. Rxd5 {[%clk 0:01:29]}  Qe3+ {[%clk 0:00:04]} 22. Kf1 {[%clk 0:01:29]}  Qf4+ {[%clk 0:00:03]} 23. Bf3 {[%clk 0:01:29]}  Rac8 {[%clk 0:00:00]} 24. g3 {[%clk 0:01:24]} 1-0


[Site "https://www.chess.com"]

[Event "Titled Tuesday Blitz July 4 Late 2023"]
[White "rionelG"]
[Black "Richter, Paul"]
[BlackFideId "2046350"]
[WhiteElo "2263"]
[BlackElo "2550"]
[Result "1-0"]
[Round "1"]
[TimeControl "180+2"]
[Date "2023.07.04"]
[WhiteClock "0:00:07"]
[BlackClock "0:00:00"]
[Board "152"]

1. e4 {[%clk 0:02:59]}  c5 {[%clk 0:02:58]} 2. g3 {[%clk 0:02:59]}  Nc6 {[%clk 0:02:58]} 3. Bg2 {[%clk 0:02:59]}  g6 {[%clk 0:02:58]} 4. Ne2 {[%clk 0:02:59]}  Bg7 {[%clk 0:02:58]} 5. c3 {[%clk 0:03:00]}  e6 {[%clk 0:02:58]} 6. d4 {[%clk 0:03:00]}  cxd4 {[%clk 0:02:59]} 7. cxd4 {[%clk 0:03:01]}  Nge7 {[%clk 0:03:00]} 8. Nbc3 {[%clk 0:02:59]}  d6 {[%clk 0:02:56]} 9. O-O {[%clk 0:02:58]}  O-O {[%clk 0:02:56]} 10. h3 {[%clk 0:02:57]}  a6 {[%clk 0:02:56]} 11. Be3 {[%clk 0:02:49]}  b5 {[%clk 0:02:54]} 12. Qd2 {[%clk 0:02:46]}  Re8 {[%clk 0:02:50]} 13. Rac1 {[%clk 0:02:44]}  Bb7 {[%clk 0:02:49]} 14. f4 {[%clk 0:02:44]}  d5 {[%clk 0:02:47]} 15. e5 {[%clk 0:02:43]}  Rc8 {[%clk 0:02:39]} 16. g4 {[%clk 0:02:39]}  Qa5 {[%clk 0:02:25]} 17. b3 {[%clk 0:02:34]}  Na7 {[%clk 0:02:00]} 18. Nxd5 {[%clk 0:02:22]}  Qxd2 {[%clk 0:01:52]} 19. Nxe7+ {[%clk 0:02:22]}  Rxe7 {[%clk 0:01:53]} 20. Rxc8+ {[%clk 0:02:07]}  Nxc8 {[%clk 0:01:50]} 21. Bxd2 {[%clk 0:02:07]}  Bxg2 {[%clk 0:01:47]} 22. Kxg2 {[%clk 0:02:08]}  Rc7 {[%clk 0:01:38]} 23. Rc1 {[%clk 0:02:07]}  Rxc1 {[%clk 0:01:38]} 24. Bxc1 {[%clk 0:02:06]}  Bf8 {[%clk 0:01:36]} 25. Nc3 {[%clk 0:02:00]}  Nb6 {[%clk 0:01:35]} 26. Kf3 {[%clk 0:01:59]}  Be7 {[%clk 0:01:31]} 27. Ke4 {[%clk 0:01:54]}  Bb4 {[%clk 0:01:29]} 28. Ne2 {[%clk 0:01:35]}  Kf8 {[%clk 0:01:25]} 29. Kd3 {[%clk 0:01:34]}  Ke8 {[%clk 0:01:19]} 30. Bd2 {[%clk 0:01:33]}  Be7 {[%clk 0:01:18]} 31. Ba5 {[%clk 0:01:19]}  Nd5 {[%clk 0:01:16]} 32. Ke4 {[%clk 0:01:19]}  Kd7 {[%clk 0:00:57]} 33. Nc3 {[%clk 0:01:18]}  Nxc3+ {[%clk 0:00:41]} 34. Bxc3 {[%clk 0:01:18]}  Kc6 {[%clk 0:00:42]} 35. f5 {[%clk 0:01:14]}  Bg5 {[%clk 0:00:37]} 36. Bb4 {[%clk 0:01:12]}  Bc1 {[%clk 0:00:34]} 37. Bc3 {[%clk 0:00:59]}  Bg5 {[%clk 0:00:33]} 38. Be1 {[%clk 0:00:47]}  Be7 {[%clk 0:00:32]} 39. h4 {[%clk 0:00:46]}  Bf8 {[%clk 0:00:24]} 40. h5 {[%clk 0:00:45]}  gxh5 {[%clk 0:00:23]} 41. gxh5 {[%clk 0:00:45]}  Bh6 {[%clk 0:00:24]} 42. Bf2 {[%clk 0:00:40]}  Bg5 {[%clk 0:00:23]} 43. Be3 {[%clk 0:00:35]}  Bh4 {[%clk 0:00:14]} 44. f6 {[%clk 0:00:27]}  Be1 {[%clk 0:00:14]} 45. Kf4 {[%clk 0:00:27]}  Kd5 {[%clk 0:00:07]} 46. Kg5 {[%clk 0:00:27]}  Ke4 {[%clk 0:00:08]} 47. Bg1 {[%clk 0:00:25]}  Bd2+ {[%clk 0:00:07]} 48. Kg4 {[%clk 0:00:23]}  a5 {[%clk 0:00:06]} 49. Bf2 {[%clk 0:00:19]}  a4 {[%clk 0:00:06]} 50. bxa4 {[%clk 0:00:18]}  bxa4 {[%clk 0:00:07]} 51. Bg1 {[%clk 0:00:17]}  a3 {[%clk 0:00:07]} 52. Bf2 {[%clk 0:00:15]}  Bc3 {[%clk 0:00:06]} 53. Kg5 {[%clk 0:00:14]}  Bd2+ {[%clk 0:00:03]} 54. Kg4 {[%clk 0:00:13]}  Kd3 {[%clk 0:00:03]} 55. Kf3 {[%clk 0:00:12]}  Kc2 {[%clk 0:00:03]} 56. Ke4 {[%clk 0:00:12]}  Kb2 {[%clk 0:00:02]} 57. d5 {[%clk 0:00:13]}  exd5+ {[%clk 0:00:03]} 58. Kxd5 {[%clk 0:00:12]}  Kxa2 {[%clk 0:00:04]} 59. e6 {[%clk 0:00:12]}  fxe6+ {[%clk 0:00:05]} 60. Kxe6 {[%clk 0:00:12]}  Kb3 {[%clk 0:00:04]} 61. f7 {[%clk 0:00:11]}  Bb4 {[%clk 0:00:03]} 62. Bd4 {[%clk 0:00:10]}  Bf8 {[%clk 0:00:03]} 63. Kd7 {[%clk 0:00:08]}  Kc4 {[%clk 0:00:03]} 64. Bf6 {[%clk 0:00:07]}  Kd5 {[%clk 0:00:01]} 65. Ke8 {[%clk 0:00:07]}  Bc5 {[%clk 0:00:02]} 66. f8=Q {[%clk 0:00:06]}  Bxf8 {[%clk 0:00:02]} 67. Kxf8 {[%clk 0:00:07]}  Ke6 {[%clk 0:00:03]} 68. Kg7 {[%clk 0:00:07]}  a2 {[%clk 0:00:00]} 69. Ba1 {[%clk 0:00:07]} 1-0


[Site "https://www.chess.com"]

[Event "Titled Tuesday Blitz July 4 Late 2023"]
[White "Aggelis, Nikolaos"]
[Black "Bullen, Alex"]
[WhiteFideId "4213220"]
[BlackFideId "1801627"]
[WhiteElo "2547"]
[BlackElo "2248"]
[Result "0-1"]
[Round "1"]
[TimeControl "180+2"]
[Date "2023.07.04"]
[WhiteClock "0:00:04"]
[BlackClock "0:00:55"]
[Board "155"]

1. e4 {[%clk 0:02:59]}  c5 {[%clk 0:02:59]} 2. Nc3 {[%clk 0:02:58]}  e6 {[%clk 0:02:58]} 3. f4 {[%clk 0:02:58]}  d5 {[%clk 0:02:58]} 4. Bb5+ {[%clk 0:02:55]}  Bd7 {[%clk 0:02:56]} 5. exd5 {[%clk 0:02:54]}  exd5 {[%clk 0:02:53]} 6. Qe2+ {[%clk 0:02:53]}  Be7 {[%clk 0:02:40]} 7. Nxd5 {[%clk 0:02:45]}  Bxb5 {[%clk 0:02:35]} 8. Qxb5+ {[%clk 0:02:46]}  Nc6 {[%clk 0:02:30]} 9. Nxe7 {[%clk 0:02:44]}  Qxe7+ {[%clk 0:02:24]} 10. Ne2 {[%clk 0:02:38]}  Nf6 {[%clk 0:02:19]} 11. O-O {[%clk 0:02:26]}  a6 {[%clk 0:01:56]} 12. Qd3 {[%clk 0:02:23]}  Nb4 {[%clk 0:01:44]} 13. Qf3 {[%clk 0:02:07]}  Nxc2 {[%clk 0:01:32]} 14. Rb1 {[%clk 0:02:07]}  O-O {[%clk 0:01:32]} 15. b3 {[%clk 0:01:50]}  Rad8 {[%clk 0:01:18]} 16. Ng3 {[%clk 0:01:25]}  Nd4 {[%clk 0:01:16]} 17. Qd3 {[%clk 0:01:04]}  Ng4 {[%clk 0:01:07]} 18. Bb2 {[%clk 0:00:44]}  Qh4 {[%clk 0:01:05]} 19. h3 {[%clk 0:00:38]}  Qxg3 {[%clk 0:00:59]} 20. Qxg3 {[%clk 0:00:14]}  Ne2+ {[%clk 0:00:59]} 21. Kh1 {[%clk 0:00:14]}  Nxg3+ {[%clk 0:00:59]} 22. Kg1 {[%clk 0:00:15]}  Nxf1 {[%clk 0:00:57]} 23. Rxf1 {[%clk 0:00:04]}  Nf6 {[%clk 0:00:55]} 0-1


[Site "https://www.chess.com"]

[Event "Titled Tuesday Blitz July 4 Late 2023"]
[White "Sreyas Payyappat"]
[Black "Tsyhanchuk, Stanislav"]
[WhiteFideId "46674969"]
[BlackFideId "13505130"]
[WhiteElo "2546"]
[BlackElo "2237"]
[Result "1-0"]
[Round "1"]
[TimeControl "180+2"]
[Date "2023.07.04"]
[WhiteClock "0:00:20"]
[BlackClock "0:00:09"]
[Board "157"]

1. e4 {[%clk 0:03:00]}  c5 {[%clk 0:03:00]} 2. Nf3 {[%clk 0:03:00]}  d6 {[%clk 0:03:00]} 3. d4 {[%clk 0:03:01]}  cxd4 {[%clk 0:03:00]} 4. Nxd4 {[%clk 0:03:02]}  Nf6 {[%clk 0:03:00]} 5. Nc3 {[%clk 0:03:03]}  a6 {[%clk 0:03:00]} 6. h4 {[%clk 0:03:03]}  e5 {[%clk 0:02:59]} 7. Nb3 {[%clk 0:03:03]}  b5 {[%clk 0:02:56]} 8. f4 {[%clk 0:03:01]}  Nc6 {[%clk 0:02:47]} 9. f5 {[%clk 0:03:00]}  b4 {[%clk 0:02:42]} 10. Nd5 {[%clk 0:03:00]}  Nxe4 {[%clk 0:02:39]} 11. Be3 {[%clk 0:02:59]}  Rb8 {[%clk 0:02:29]} 12. Qf3 {[%clk 0:02:58]}  Nc5 {[%clk 0:02:19]} 13. Bxc5 {[%clk 0:02:37]}  dxc5 {[%clk 0:02:20]} 14. O-O-O {[%clk 0:02:37]}  Nd4 {[%clk 0:02:11]} 15. Qe4 {[%clk 0:02:31]}  Bd6 {[%clk 0:02:01]} 16. Nxd4 {[%clk 0:01:54]}  cxd4 {[%clk 0:02:02]} 17. Bd3 {[%clk 0:01:51]}  O-O {[%clk 0:01:54]} 18. f6 {[%clk 0:01:51]}  g6 {[%clk 0:01:54]} 19. h5 {[%clk 0:01:50]}  Bf5 {[%clk 0:01:48]} 20. Qh4 {[%clk 0:01:39]}  Qd7 {[%clk 0:01:24]} 21. hxg6 {[%clk 0:01:36]}  fxg6 {[%clk 0:01:13]} 22. Bxf5 {[%clk 0:01:14]}  gxf5 {[%clk 0:01:14]} 23. Qg5+ {[%clk 0:00:59]}  Kh8 {[%clk 0:01:12]} 24. Ne7 {[%clk 0:00:59]}  Rf7 {[%clk 0:00:59]} 25. Ng6+ {[%clk 0:00:54]}  Kg8 {[%clk 0:00:51]} 26. Nxe5+ {[%clk 0:00:43]}  Rg7 {[%clk 0:00:51]} 27. f7+ {[%clk 0:00:40]}  Qxf7 {[%clk 0:00:33]} 28. Nxf7 {[%clk 0:00:40]}  Rxg5 {[%clk 0:00:32]} 29. Nxg5 {[%clk 0:00:41]}  Bf4+ {[%clk 0:00:33]} 30. Kb1 {[%clk 0:00:42]}  Bxg5 {[%clk 0:00:33]} 31. Rxd4 {[%clk 0:00:39]}  a5 {[%clk 0:00:33]} 32. Rd5 {[%clk 0:00:37]}  a4 {[%clk 0:00:32]} 33. Rxf5 {[%clk 0:00:36]}  h6 {[%clk 0:00:32]} 34. Rd1 {[%clk 0:00:29]}  b3 {[%clk 0:00:31]} 35. cxb3 {[%clk 0:00:26]}  axb3 {[%clk 0:00:32]} 36. a4 {[%clk 0:00:26]}  Rb4 {[%clk 0:00:26]} 37. a5 {[%clk 0:00:23]}  Ra4 {[%clk 0:00:21]} 38. Rd3 {[%clk 0:00:20]}  Rg4 {[%clk 0:00:09]} 39. Rxb3 {[%clk 0:00:19]}  Rxg2 {[%clk 0:00:09]} 40. a6 {[%clk 0:00:20]}  Rg1+ {[%clk 0:00:07]} 41. Ka2 {[%clk 0:00:19]}  Rg4 {[%clk 0:00:08]} 42. a7 {[%clk 0:00:19]}  Ra4+ {[%clk 0:00:08]} 43. Ra3 {[%clk 0:00:20]}  Rxa7 {[%clk 0:00:09]} 44. Rxa7 {[%clk 0:00:21]}  Bd8 {[%clk 0:00:08]} 45. Rd5 {[%clk 0:00:20]}  Bg5 {[%clk 0:00:08]} 46. Rc5 {[%clk 0:00:19]}  Bd8 {[%clk 0:00:08]} 47. Rc8 {[%clk 0:00:20]}  h5 {[%clk 0:00:09]} 48. Rxd8# {[%clk 0:00:20]} 1-0


[Site "https://www.chess.com"]

[Event "Titled Tuesday Blitz July 4 Late 2023"]
[White "SicilianPanzer"]
[Black "Kochiev, Ivan"]
[BlackFideId "2917890"]
[WhiteElo "2235"]
[BlackElo "2546"]
[Result "1/2-1/2"]
[Round "1"]
[TimeControl "180+2"]
[Date "2023.07.04"]
[WhiteClock "0:00:06"]
[BlackClock "0:00:04"]
[Board "158"]

1. Nf3 {[%clk 0:02:59]}  Nf6 {[%clk 0:02:59]} 2. c4 {[%clk 0:02:57]}  e6 {[%clk 0:02:57]} 3. d4 {[%clk 0:02:57]}  c5 {[%clk 0:02:56]} 4. g3 {[%clk 0:02:56]}  cxd4 {[%clk 0:02:56]} 5. Nxd4 {[%clk 0:02:56]}  a6 {[%clk 0:02:55]} 6. Bg2 {[%clk 0:02:51]}  Qc7 {[%clk 0:02:55]} 7. Nc3 {[%clk 0:02:46]}  Be7 {[%clk 0:02:53]} 8. O-O {[%clk 0:02:43]}  O-O {[%clk 0:02:53]} 9. Qd3 {[%clk 0:02:42]}  Nc6 {[%clk 0:02:53]} 10. Nxc6 {[%clk 0:02:24]}  dxc6 {[%clk 0:02:36]} 11. b3 {[%clk 0:01:57]}  e5 {[%clk 0:02:29]} 12. Bb2 {[%clk 0:01:55]}  Be6 {[%clk 0:02:27]} 13. Rad1 {[%clk 0:01:54]}  Rfd8 {[%clk 0:02:26]} 14. Qc2 {[%clk 0:01:54]}  Rac8 {[%clk 0:02:11]} 15. Rxd8+ {[%clk 0:01:10]}  Rxd8 {[%clk 0:02:11]} 16. Rd1 {[%clk 0:01:09]}  h6 {[%clk 0:02:11]} 17. a3 {[%clk 0:00:56]}  a5 {[%clk 0:01:52]} 18. Na4 {[%clk 0:00:39]}  Rxd1+ {[%clk 0:01:30]} 19. Qxd1 {[%clk 0:00:40]}  b5 {[%clk 0:01:31]} 20. cxb5 {[%clk 0:00:38]}  cxb5 {[%clk 0:01:31]} 21. Nc3 {[%clk 0:00:36]}  b4 {[%clk 0:01:06]} 22. axb4 {[%clk 0:00:36]}  axb4 {[%clk 0:00:59]} 23. Nd5 {[%clk 0:00:21]}  Bxd5 {[%clk 0:00:45]} 24. Bxd5 {[%clk 0:00:21]}  Qd6 {[%clk 0:00:45]} 25. e4 {[%clk 0:00:06]}  Nxe4 {[%clk 0:00:46]} 26. Qd3 {[%clk 0:00:02]}  Nf6 {[%clk 0:00:29]} 27. Bc4 {[%clk 0:00:02]}  Qxd3 {[%clk 0:00:21]} 28. Bxd3 {[%clk 0:00:03]}  Bd6 {[%clk 0:00:21]} 29. Bc4 {[%clk 0:00:03]}  Kf8 {[%clk 0:00:21]} 30. f3 {[%clk 0:00:03]}  Nd7 {[%clk 0:00:19]} 31. Kf2 {[%clk 0:00:03]}  f5 {[%clk 0:00:17]} 32. Ke3 {[%clk 0:00:03]}  Ke7 {[%clk 0:00:18]} 33. Ke2 {[%clk 0:00:02]}  Kf6 {[%clk 0:00:17]} 34. f4 {[%clk 0:00:01]}  g5 {[%clk 0:00:16]} 35. fxe5+ {[%clk 0:00:02]}  Bxe5 {[%clk 0:00:17]} 36. Bc1 {[%clk 0:00:01]}  h5 {[%clk 0:00:12]} 37. Bd2 {[%clk 0:00:01]}  Bd6 {[%clk 0:00:09]} 38. Bd5 {[%clk 0:00:02]}  h4 {[%clk 0:00:07]} 39. Kf3 {[%clk 0:00:01]}  hxg3 {[%clk 0:00:05]} 40. hxg3 {[%clk 0:00:02]}  Ne5+ {[%clk 0:00:04]} 41. Kg2 {[%clk 0:00:02]}  Nd3 {[%clk 0:00:04]} 42. Bc4 {[%clk 0:00:02]}  Nc5 {[%clk 0:00:04]} 43. Be3 {[%clk 0:00:02]}  Nd7 {[%clk 0:00:02]} 44. Bd4+ {[%clk 0:00:02]}  Be5 {[%clk 0:00:02]} 45. Be3 {[%clk 0:00:02]}  Bc3 {[%clk 0:00:03]} 46. Ba7 {[%clk 0:00:02]}  Ke5 {[%clk 0:00:03]} 47. Be3 {[%clk 0:00:02]}  f4 {[%clk 0:00:02]} 48. gxf4+ {[%clk 0:00:03]}  gxf4 {[%clk 0:00:03]} 49. Bc1 {[%clk 0:00:03]}  Nc5 {[%clk 0:00:03]} 50. Kf3 {[%clk 0:00:03]}  Ne6 {[%clk 0:00:03]} 51. Bxe6 {[%clk 0:00:02]}  Kxe6 {[%clk 0:00:03]} 52. Kxf4 {[%clk 0:00:03]}  Kd5 {[%clk 0:00:02]} 53. Ke3 {[%clk 0:00:04]}  Bf6 {[%clk 0:00:02]} 54. Kd3 {[%clk 0:00:04]}  Be7 {[%clk 0:00:03]} 55. Bd2 {[%clk 0:00:04]}  Bf8 {[%clk 0:00:03]} 56. Be1 {[%clk 0:00:05]}  Be7 {[%clk 0:00:03]} 57. Bd2 {[%clk 0:00:05]}  Bf8 {[%clk 0:00:04]} 58. Be1 {[%clk 0:00:05]}  Be7 {[%clk 0:00:04]} 59. Bd2 {[%clk 0:00:06]} 1/2-1/2


[Site "https://www.chess.com"]

[Event "Titled Tuesday Blitz July 4 Late 2023"]
[White "Schachpanda_Youtube"]
[Black "Golubev, Mikhail"]
[BlackFideId "14100983"]
[WhiteElo "2221"]
[BlackElo "2544"]
[Result "0-1"]
[Round "1"]
[TimeControl "180+2"]
[Date "2023.07.04"]
[WhiteClock "0:00:12"]
[BlackClock "0:00:31"]
[Board "160"]

1. e4 {[%clk 0:03:00]}  c5 {[%clk 0:02:59]} 2. d4 {[%clk 0:02:55]}  cxd4 {[%clk 0:02:59]} 3. c3 {[%clk 0:02:55]}  dxc3 {[%clk 0:02:59]} 4. Nxc3 {[%clk 0:02:56]}  Nc6 {[%clk 0:02:59]} 5. Nf3 {[%clk 0:02:54]}  d6 {[%clk 0:02:59]} 6. Bc4 {[%clk 0:02:54]}  a6 {[%clk 0:02:59]} 7. O-O {[%clk 0:02:54]}  Nf6 {[%clk 0:02:59]} 8. h3 {[%clk 0:02:51]}  e6 {[%clk 0:02:54]} 9. Qe2 {[%clk 0:02:49]}  Be7 {[%clk 0:02:53]} 10. Rd1 {[%clk 0:02:48]}  Qc7 {[%clk 0:02:50]} 11. Bf4 {[%clk 0:02:43]}  Ne5 {[%clk 0:02:40]} 12. Bb3 {[%clk 0:02:40]}  O-O {[%clk 0:02:39]} 13. Rac1 {[%clk 0:02:38]}  Qb8 {[%clk 0:02:38]} 14. Bh2 {[%clk 0:02:30]}  b5 {[%clk 0:02:32]} 15. Nd4 {[%clk 0:02:22]}  Bb7 {[%clk 0:02:32]} 16. f4 {[%clk 0:02:17]}  Nc4 {[%clk 0:02:31]} 17. e5 {[%clk 0:02:03]}  dxe5 {[%clk 0:02:31]} 18. fxe5 {[%clk 0:02:04]}  Nd5 {[%clk 0:02:28]} 19. Ne4 {[%clk 0:01:50]}  Nde3 {[%clk 0:02:00]} 20. Nd6 {[%clk 0:01:28]}  Bxd6 {[%clk 0:01:53]} 21. exd6 {[%clk 0:01:28]}  Nxd1 {[%clk 0:01:53]} 22. Rxd1 {[%clk 0:01:28]}  Qa7 {[%clk 0:01:31]} 23. Kh1 {[%clk 0:01:25]}  Rad8 {[%clk 0:01:30]} 24. Bc2 {[%clk 0:01:04]}  Nxd6 {[%clk 0:01:13]} 25. Qh5 {[%clk 0:00:40]}  Nf5 {[%clk 0:01:09]} 26. Nxf5 {[%clk 0:00:23]}  Rxd1+ {[%clk 0:01:08]} 27. Qxd1 {[%clk 0:00:21]}  exf5 {[%clk 0:00:59]} 28. Bxf5 {[%clk 0:00:16]}  Qf2 {[%clk 0:00:51]} 29. Qg4 {[%clk 0:00:13]}  Re8 {[%clk 0:00:32]} 30. Bg3 {[%clk 0:00:12]}  Re1+ {[%clk 0:00:30]} 31. Kh2 {[%clk 0:00:12]}  Qxg2# {[%clk 0:00:31]} 0-1


[Site "https://www.chess.com"]

[Event "Titled Tuesday Blitz July 4 Late 2023"]
[White "Thiel, Thomas"]
[Black "Tomb, Maroun"]
[WhiteFideId "4615964"]
[BlackFideId "5300398"]
[WhiteElo "2216"]
[BlackElo "2542"]
[Result "0-1"]
[Round "1"]
[TimeControl "180+2"]
[Date "2023.07.04"]
[WhiteClock "0:00:29"]
[BlackClock "0:00:44"]
[Board "162"]

1. e4 {[%clk 0:03:00]}  d6 {[%clk 0:02:59]} 2. d4 {[%clk 0:02:58]}  Nf6 {[%clk 0:02:59]} 3. Nc3 {[%clk 0:02:58]}  e5 {[%clk 0:02:59]} 4. Nf3 {[%clk 0:02:56]}  Nbd7 {[%clk 0:02:59]} 5. g4 {[%clk 0:02:54]}  Nxg4 {[%clk 0:02:58]} 6. Rg1 {[%clk 0:02:52]}  Ngf6 {[%clk 0:02:58]} 7. Bc4 {[%clk 0:02:48]}  h6 {[%clk 0:02:57]} 8. dxe5 {[%clk 0:02:47]}  dxe5 {[%clk 0:02:56]} 9. Be3 {[%clk 0:02:44]}  c6 {[%clk 0:02:56]} 10. Qe2 {[%clk 0:02:42]}  b5 {[%clk 0:02:55]} 11. Bb3 {[%clk 0:02:39]}  Qc7 {[%clk 0:02:49]} 12. O-O-O {[%clk 0:02:35]}  a5 {[%clk 0:02:43]} 13. a4 {[%clk 0:02:30]}  bxa4 {[%clk 0:02:19]} 14. Bxa4 {[%clk 0:02:18]}  Ba6 {[%clk 0:02:18]} 15. Qe1 {[%clk 0:02:16]}  g6 {[%clk 0:02:17]} 16. Nh4 {[%clk 0:02:04]}  Bb4 {[%clk 0:02:06]} 17. f3 {[%clk 0:02:03]}  Nc5 {[%clk 0:01:55]} 18. Bxc5 {[%clk 0:01:54]}  Bxc5 {[%clk 0:01:55]} 19. Nd5 {[%clk 0:01:54]}  Nxd5 {[%clk 0:01:51]} 20. exd5 {[%clk 0:01:54]}  Bb5 {[%clk 0:01:48]} 21. Bb3 {[%clk 0:01:50]}  O-O-O {[%clk 0:01:32]} 22. Rf1 {[%clk 0:01:30]}  a4 {[%clk 0:01:22]} 23. Ba2 {[%clk 0:01:28]}  a3 {[%clk 0:01:18]} 24. b4 {[%clk 0:01:27]}  Bxf1 {[%clk 0:01:12]} 25. bxc5 {[%clk 0:01:19]}  Qe7 {[%clk 0:00:57]} 26. d6 {[%clk 0:01:19]}  Qg5+ {[%clk 0:00:56]} 27. Kb1 {[%clk 0:01:16]}  Kd7 {[%clk 0:00:51]} 28. Qxf1 {[%clk 0:01:08]}  Rb8+ {[%clk 0:00:47]} 29. Ka1 {[%clk 0:01:06]}  Qxh4 {[%clk 0:00:44]} 30. Qa6 {[%clk 0:00:29]}  Qb4 {[%clk 0:00:44]} 0-1


[Site "https://www.chess.com"]

[Event "Titled Tuesday Blitz July 4 Late 2023"]
[White "ArtemDyachuk"]
[Black "Gardezi, Arsal"]
[BlackFideId "30949521"]
[WhiteElo "2540"]
[BlackElo "2197"]
[Result "1-0"]
[Round "1"]
[TimeControl "180+2"]
[Date "2023.07.04"]
[WhiteClock "0:00:04"]
[BlackClock "0:00:09"]
[Board "163"]

1. e4 {[%clk 0:03:00]}  e5 {[%clk 0:02:56]} 2. Nf3 {[%clk 0:02:59]}  Nc6 {[%clk 0:02:56]} 3. Bc4 {[%clk 0:03:00]}  Nf6 {[%clk 0:02:56]} 4. O-O {[%clk 0:02:40]}  Bc5 {[%clk 0:02:55]} 5. d3 {[%clk 0:02:35]}  O-O {[%clk 0:02:55]} 6. Nc3 {[%clk 0:02:34]}  d6 {[%clk 0:02:54]} 7. Bg5 {[%clk 0:02:33]}  h6 {[%clk 0:02:53]} 8. Bh4 {[%clk 0:02:33]}  Be6 {[%clk 0:02:53]} 9. Bb3 {[%clk 0:02:25]}  Nd4 {[%clk 0:02:32]} 10. Nxd4 {[%clk 0:02:24]}  Bxd4 {[%clk 0:02:28]} 11. Ne2 {[%clk 0:02:24]}  Bb6 {[%clk 0:02:27]} 12. c3 {[%clk 0:02:20]}  g5 {[%clk 0:02:20]} 13. Bg3 {[%clk 0:02:20]}  Nh5 {[%clk 0:02:18]} 14. Kh1 {[%clk 0:02:20]}  Nf4 {[%clk 0:02:07]} 15. d4 {[%clk 0:02:12]}  Bxb3 {[%clk 0:01:59]} 16. axb3 {[%clk 0:02:10]}  Nxe2 {[%clk 0:01:58]} 17. Qxe2 {[%clk 0:02:10]}  exd4 {[%clk 0:01:59]} 18. f4 {[%clk 0:02:06]}  dxc3 {[%clk 0:01:52]} 19. e5 {[%clk 0:02:03]}  dxe5 {[%clk 0:01:46]} 20. fxe5 {[%clk 0:02:01]}  cxb2 {[%clk 0:01:45]} 21. Rad1 {[%clk 0:02:01]}  Qc8 {[%clk 0:01:42]} 22. Qh5 {[%clk 0:01:57]}  Qe6 {[%clk 0:01:22]} 23. Rd2 {[%clk 0:01:23]}  Qg6 {[%clk 0:01:11]} 24. Qd1 {[%clk 0:01:18]}  Ba5 {[%clk 0:00:55]} 25. Rxb2 {[%clk 0:01:16]}  Rad8 {[%clk 0:00:56]} 26. Qf3 {[%clk 0:01:00]}  Qd3 {[%clk 0:00:54]} 27. Qf6 {[%clk 0:00:56]}  Qg6 {[%clk 0:00:53]} 28. Qf3 {[%clk 0:00:46]}  Qd3 {[%clk 0:00:51]} 29. Qf2 {[%clk 0:00:40]}  Bb6 {[%clk 0:00:37]} 30. Qe1 {[%clk 0:00:33]}  Bd4 {[%clk 0:00:35]} 31. Rb1 {[%clk 0:00:23]}  Bc3 {[%clk 0:00:35]} 32. Qf2 {[%clk 0:00:21]}  Qg6 {[%clk 0:00:28]} 33. Qf3 {[%clk 0:00:21]}  Rd3 {[%clk 0:00:25]} 34. Qg4 {[%clk 0:00:13]}  h5 {[%clk 0:00:21]} 35. Qe2 {[%clk 0:00:13]}  h4 {[%clk 0:00:19]} 36. Bf2 {[%clk 0:00:11]}  Rd2 {[%clk 0:00:19]} 37. Qf3 {[%clk 0:00:11]}  g4 {[%clk 0:00:18]} 38. Qxc3 {[%clk 0:00:10]}  Rxf2 {[%clk 0:00:17]} 39. Rbe1 {[%clk 0:00:08]}  Qf5 {[%clk 0:00:16]} 40. Qc4 {[%clk 0:00:05]}  h3 {[%clk 0:00:13]} 41. Rxf2 {[%clk 0:00:03]}  Qxf2 {[%clk 0:00:12]} 42. Qxg4+ {[%clk 0:00:04]}  Kh7 {[%clk 0:00:11]} 43. Qxh3+ {[%clk 0:00:05]}  Kg7 {[%clk 0:00:10]} 44. Qg4+ {[%clk 0:00:05]}  Kh7 {[%clk 0:00:10]} 45. Qe4+ {[%clk 0:00:04]}  f5 {[%clk 0:00:10]} 46. exf6+ {[%clk 0:00:03]}  Kh6 {[%clk 0:00:10]} 47. Qe7 {[%clk 0:00:01]}  Qxf6 {[%clk 0:00:09]} 48. Qe3+ {[%clk 0:00:01]}  Qf4 {[%clk 0:00:09]} 49. Qh3+ {[%clk 0:00:02]}  Kg6 {[%clk 0:00:09]} 50. Rg1 {[%clk 0:00:02]}  Qg5 {[%clk 0:00:08]} 51. Qe6+ {[%clk 0:00:03]}  Rf6 {[%clk 0:00:08]} 52. Qe4+ {[%clk 0:00:03]}  Qf5 {[%clk 0:00:08]} 53. Qxb7 {[%clk 0:00:04]}  Qe5 {[%clk 0:00:08]} 54. Qxa7 {[%clk 0:00:04]}  Rf5 {[%clk 0:00:08]} 55. Qa6+ {[%clk 0:00:04]}  Kf7 {[%clk 0:00:07]} 56. Qc4+ {[%clk 0:00:04]}  Ke7 {[%clk 0:00:07]} 57. Qg4 {[%clk 0:00:04]}  Rh5 {[%clk 0:00:08]} 58. h3 {[%clk 0:00:03]}  Rg5 {[%clk 0:00:08]} 59. Qh4 {[%clk 0:00:03]}  Kf7 {[%clk 0:00:08]} 60. Rf1+ {[%clk 0:00:04]}  Rf5 {[%clk 0:00:08]} 61. Qh5+ {[%clk 0:00:03]}  Ke6 {[%clk 0:00:06]} 62. Qxf5+ {[%clk 0:00:03]}  Qxf5 {[%clk 0:00:07]} 63. Rxf5 {[%clk 0:00:04]}  Kxf5 {[%clk 0:00:08]} 64. h4 {[%clk 0:00:04]}  c5 {[%clk 0:00:08]} 65. h5 {[%clk 0:00:05]}  Kg4 {[%clk 0:00:09]} 66. h6 {[%clk 0:00:05]}  Kg5 {[%clk 0:00:10]} 67. h7 {[%clk 0:00:05]}  c4 {[%clk 0:00:09]} 68. bxc4 {[%clk 0:00:04]} 1-0


[Site "https://www.chess.com"]